[Event "66th HUN-ch Women 2018"]
[Site "Budapest"]
[Date "2018.12.07"]
[Round "5"]
[White "Havanecz, Bianka"]
[Black "Terbe, Julianna"]
[Result "1-0"]
[ECO "E93"]
[WhiteElo "2247"]
[BlackElo "2272"]
[Annotator "RC"]
[PlyCount "89"]
[EventDate "2018.12.03"]
[EventType "tourn"]
[EventCountry "HUN"]
[SourceTitle "playchess.com"]
[Source "ChessBase"]
[SourceQuality "1"]
[TimeControl "40/5400+30:1800+30"]

1. d4 {[%emt 0:00:01]} Nf6 {[%emt 0:00:04]} 2. c4 {[%emt 0:00:15]} g6 {[%emt 0:00:10]} 3. Nf3 {[%emt 0:00:10]} Bg7 {[%emt 0:00:12]} 4. Nc3 {[%emt 0:00:24]} O-O {[%emt 0:00:06]} 5. e4 {[%emt 0:00:51]} d6 {[%emt 0:00:07]} 6. Be2 {[%emt 0:00:27]} e5 {[%emt 0:00:34]} 7. d5 {[%emt 0:01:12]} Nbd7 {[%emt 0:03:19]} 8. Bg5 {[%emt 0:00:40]} h6 {[%emt 0:00:30]} 9. Be3 {[%emt 0:13:45]} Ng4 {[%emt 0:03:37]} 10. Bd2 {[%emt 0:05:32]} f5 {[%emt 0:01:08]} 11. exf5 {[%emt 0:02:37]} gxf5 {[%emt 0:00:47]} 12. h3 {[%emt 0:04:02]} Ngf6 {[%emt 0:04:07]} 13. O-O {[%emt 0:13:46]} Nc5 {[%emt 0:06:02]} 14. Be1 {[%emt 0:06:35]} a5 {[%emt 0:10:58]} 15. Nh2 {[%emt 0:01:42]} Nfe4 {[%emt 0:06:25]} 16. Nxe4 {[%emt 0:04:35]} fxe4 {[%emt 0:02:08]} 17. Bg4 {[%emt 0:02:25]} Bxg4 {[%emt 0:08:32]} 18. Qxg4 {[%emt 0:00:14]} Rf4 {[%emt 0:03:37]} 19. Qe2 {[%emt 0:01:25]} b6 {[%emt 0:04:49]} 20. Bd2 {[%emt 0:01:56]} Rf6 {[%emt 0:01:34]} 21. a4 {[%emt 0:06:23]} Rg6 {[%emt 0:06:29]} 22. Qh5 {[%emt 0:10:47]} Qe8 {[%emt 0:06:15]} 23. Ng4 {[%emt 0:00:06]} Nb3 {[%emt 0:00:31]} 24. Rad1 {[%emt 0:00:14]} Kh7 {[%emt 0:01:37]} 25. Qf5 {[%emt 0:01:52]} Nxd2 {[%emt 0:01:13]} 26. Rxd2 {[%emt 0:00:01]} Qxa4 {[%emt 0:00:15]} 27. Qxe4 {[%emt 0:00:14]} Rf8 {[%emt 0:03:55]} 28. g3 {[%emt 0:01:30]} h5 {[%emt 0:04:15]} 29. Ne3 {[%emt 0:01:29]} Rf4 {[%emt 0:02:08]} 30. Qb1 {[%emt 0:03:49]} Bh6 {[%emt 0:05:42]} 31. Re2 {[%emt 0:05:35]} Qd7 {[%emt 0:03:12]} 32. Kh2 {[%emt 0:00:23]} h4 {[%emt 0:08:28]} 33. Rg1 {[%emt 0:04:55]} Kg7 {[%emt 0:01:56]} 34. Qxg6+ {[%emt 0:01:37]} Kxg6 {[%emt 0:00:01]} 35. gxf4+ {[%emt 0:00:05]} Kf7 {[%emt 0:01:49]} 36. fxe5 {[%emt 0:01:22]} Bf4+ {[%emt 0:00:06]} 37. Kg2 {[%emt 0:00:03]} dxe5 {[%emt 0:00:10]} 38. Ng4 {[%emt 0:00:39]} Qa4 {[%emt 0:00:47]} 39. Nxe5+ {[%emt 0:02:42]} Bxe5 {[%emt 0:00:01]} 40. Rxe5 {[%emt 0:00:00]} Qxc4 {[%emt 0:00:00]} 41. Rge1 {[%emt 0:00:20]} Qb3 {[%emt 0:05:48]} 42. Re7+ {[%emt 0:04:38]} Kf6 {[%emt 0:00:08]} 43. R1e6+ {[%emt 0:01:48]} Kf5 {[%emt 0:00:19]} 44. Rf7+ {[%emt 0:01:24]} Kg5 {[%emt 0:00:02]} 45. f4+ {[%emt 0:00:12]} 1-0

[Event "66th HUN-ch Women 2018"]
[Site "Budapest"]
[Date "2018.12.07"]
[Round "5"]
[White "Gal, Hanna Krisztina"]
[Black "Terbe, Zsuzsanna"]
[Result "1/2-1/2"]
[ECO "B31"]
[WhiteElo "2189"]
[BlackElo "2180"]
[Annotator "RC"]
[PlyCount "169"]
[EventDate "2018.12.03"]
[EventType "tourn"]
[EventCountry "HUN"]
[SourceTitle "playchess.com"]
[Source "ChessBase"]
[SourceQuality "1"]
[TimeControl "40/5400+30:1800+30"]

1. e4 {[%emt 0:00:01]} c5 {[%emt 0:00:06]} 2. Nf3 {[%emt 0:00:06]} Nc6 {[%emt 0:00:07]} 3. Bb5 {[%emt 0:00:08]} g6 {[%emt 0:00:14]} 4. Bxc6 {[%emt 0:00:15]} bxc6 {[%emt 0:01:38]} 5. O-O {[%emt 0:00:15]} Bg7 {[%emt 0:00:11]} 6. Re1 {[%emt 0:00:12]} Nh6 {[%emt 0:04:52]} 7. c3 {[%emt 0:00:23]} O-O {[%emt 0:00:28]} 8. h3 {[%emt 0:00:10]} Rb8 {[%emt 0:07:53]} 9. d3 {[%emt 0:04:40]} d6 {[%emt 0:00:52]} 10. Na3 {[%emt 0:03:27]} f6 {[%emt 0:02:24]} 11. Qa4 {[%emt 0:08:46]} Qc7 {[%emt 0:09:02]} 12. d4 {[%emt 0:05:59]} cxd4 {[%emt 0:02:16]} 13. Nxd4 {[%emt 0:01:40]} Bd7 {[%emt 0:03:04]} 14. Qc4+ {[%emt 0:01:59]} Nf7 {[%emt 0:00:20]} 15. Ne6 {[%emt 0:02:19]} Bxe6 {[%emt 0:01:45]} 16. Qxe6 {[%emt 0:00:05]} Qc8 {[%emt 0:07:12]} 17. Qxc8 {[%emt 0:05:10]} Rfxc8 {[%emt 0:00:17]} 18. Nc4 {[%emt 0:04:14]} d5 {[%emt 0:02:33]} 19. exd5 {[%emt 0:07:04]} cxd5 {[%emt 0:00:11]} 20. Na5 {[%emt 0:01:09]} Rc7 {[%emt 0:07:21]} 21. Nb3 {[%emt 0:04:46]} e5 {[%emt 0:07:22]} 22. Rd1 {[%emt 0:03:15]} Rb5 {[%emt 0:05:51]} 23. Rb1 {[%emt 0:18:57]} Nd6 {[%emt 0:09:43]} 24. Nd2 {[%emt 0:04:17]} Nf5 {[%emt 0:01:23]} 25. a4 {[%emt 0:05:02]} Rb8 {[%emt 0:00:44]} 26. Ra1 {[%emt 0:03:14]} Kf7 {[%emt 0:06:23]} 27. Ra3 {[%emt 0:01:57]} Ke6 {[%emt 0:02:39]} 28. b4 {[%emt 0:02:56]} d4 {[%emt 0:05:07]} 29. g4 {[%emt 0:04:14]} dxc3 {[%emt 0:01:30]} 30. gxf5+ gxf5 {[%emt 0:00:06]} 31. Nb3 {[%emt 0:02:40]} Rxb4 {[%emt 0:00:29]} 32. Be3 {[%emt 0:01:55]} Bf8 {[%emt 0:00:36]} 33. Rc1 {[%emt 0:02:46]} Rbb7 {[%emt 0:06:23]} 34. Nc5+ {[%emt 0:00:33]} Bxc5 {[%emt 0:00:13]} 35. Raxc3 {[%emt 0:00:08]} Bb6 {[%emt 0:02:45]} 36. Rxc7 {[%emt 0:00:00]} Bxc7 {[%emt 0:00:57]} 37. Rc6+ {[%emt 0:00:07]} Kf7 {[%emt 0:00:53]} 38. Bd2 {[%emt 0:00:52]} Bb6 {[%emt 0:00:42]} 39. a5 {[%emt 0:00:00]} Bd4 {[%emt 0:00:00]} 40. Be3 {[%emt 0:00:00]} Bxe3 {[%emt 0:00:00]} 41. fxe3 {[%emt 0:03:59]} Kg6 {[%emt 0:02:59]} 42. Kf2 {[%emt 0:01:29]} Kg5 {[%emt 0:01:27]} 43. Kg3 {[%emt 0:02:03]} f4+ {[%emt 0:03:16]} 44. exf4+ {[%emt 0:00:22]} exf4+ {[%emt 0:00:12]} 45. Kf3 {[%emt 0:00:31]} Rb3+ {[%emt 0:00:30]} 46. Kg2 {[%emt 0:00:18]} Rg3+ {[%emt 0:01:02]} 47. Kh2 {[%emt 0:01:36]} Ra3 {[%emt 0:00:23]} 48. Ra6 {[%emt 0:01:10]} Kh4 {[%emt 0:01:39]} 49. Rxa7 {[%emt 0:00:35]} Ra2+ {[%emt 0:01:05]} 50. Kg1 {[%emt 0:00:19]} h5 {[%emt 0:05:03]} 51. a6 {[%emt 0:03:00]} Kxh3 {[%emt 0:02:15]} 52. Rg7 {[%emt 0:03:17]} Rxa6 {[%emt 0:02:24]} 53. Kf2 {[%emt 0:00:07]} Ra3 {[%emt 0:01:13]} 54. Rg6 {[%emt 0:00:42]} f5 {[%emt 0:01:43]} 55. Rg5 {[%emt 0:02:20]} Kh4 {[%emt 0:00:37]} 56. Rg8 {[%emt 0:01:13]} Rg3 {[%emt 0:00:32]} 57. Rh8 {[%emt 0:00:24]} Rh3 {[%emt 0:01:54]} 58. Rg8 {[%emt 0:00:20]} Ra3 {[%emt 0:01:02]} 59. Rh8 {[%emt 0:03:14]} Kg5 {[%emt 0:02:46]} 60. Rg8+ {[%emt 0:00:05]} Kf6 {[%emt 0:00:04]} 61. Rf8+ {[%emt 0:01:32]} Kg6 {[%emt 0:00:06]} 62. Rg8+ {[%emt 0:00:14]} Kf7 {[%emt 0:04:36]} 63. Rg5 {[%emt 0:00:11]} Kf6 {[%emt 0:00:04]} 64. Rxh5 {[%emt 0:00:05]} Ke5 {[%emt 0:05:58]} 65. Rh8 {[%emt 0:00:26]} f3 {[%emt 0:00:04]} 66. Rh4 {[%emt 0:00:35]} Rb3 {[%emt 0:01:09]} 67. Ra4 {[%emt 0:00:23]} Kf6 {[%emt 0:00:19]} 68. Ra6+ {[%emt 0:01:42]} Kg5 {[%emt 0:00:07]} 69. Ra4 {[%emt 0:00:04]} Rd3 {[%emt 0:01:46]} 70. Rb4 {[%emt 0:00:11]} Rc3 {[%emt 0:00:31]} 71. Ra4 {[%emt 0:00:04]} Kf6 {[%emt 0:00:04]} 72. Ra6+ {[%emt 0:00:25]} Ke5 {[%emt 0:00:16]} 73. Ra4 {[%emt 0:00:03]} Rd3 {[%emt 0:00:44]} 74. Rb4 {[%emt 0:00:12]} Ra3 {[%emt 0:01:06]} 75. Rc4 {[%emt 0:00:16]} Rd3 {[%emt 0:00:44]} 76. Ra4 {[%emt 0:00:07]} f4 {[%emt 0:00:35]} 77. Ra8 {[%emt 0:00:22]} Rc3 {[%emt 0:00:39]} 78. Re8+ {[%emt 0:00:07]} Kd4 {[%emt 0:00:16]} 79. Rd8+ {[%emt 0:00:08]} Ke4 {[%emt 0:00:08]} 80. Re8+ {[%emt 0:00:03]} Kd3 {[%emt 0:00:03]} 81. Rd8+ {[%emt 0:00:14]} Kc2 {[%emt 0:00:08]} 82. Rd4 {[%emt 0:00:26]} Rd3 {[%emt 0:00:07]} 83. Rxd3 {[%emt 0:00:07]} Kxd3 {[%emt 0:00:03]} 84. Kxf3 {[%emt 0:00:04]} Kd4 {[%emt 0:00:03]} 85. Kxf4 {[%emt 0:00:04]} 1/2-1/2

[Event "66th HUN-ch Women 2018"]
[Site "Budapest"]
[Date "2018.12.08"]
[Round "6"]
[White "Terbe, Julianna"]
[Black "Varga, Klara"]
[Result "1/2-1/2"]
[ECO "A40"]
[WhiteElo "2272"]
[BlackElo "2242"]
[Annotator "NA"]
[PlyCount "102"]
[EventDate "2018.12.03"]
[EventType "tourn"]
[EventCountry "HUN"]
[SourceTitle "playchess.com"]
[Source "ChessBase"]
[SourceQuality "1"]
[TimeControl "40/5400+30:1800+30"]

1. d4 {[%emt 0:00:03]} e6 {[%emt 0:00:49]} 2. Nf3 {[%emt 0:00:11]} Nf6 {[%emt 0:00:10]} 3. Bf4 {[%emt 0:00:05]} c5 {[%emt 0:00:05]} 4. e3 {[%emt 0:00:04]} b6 {[%emt 0:00:03]} 5. Nc3 {[%emt 0:00:04]} Bb7 {[%emt 0:00:04]} 6. Nb5 {[%emt 0:00:06]} Na6 {[%emt 0:01:07]} 7. c3 {[%emt 0:00:16]} cxd4 {[%emt 0:00:28]} 8. exd4 {[%emt 0:01:46]} Be7 {[%emt 0:07:20]} 9. Bd3 {[%emt 0:07:41]} O-O {[%emt 0:15:34]} 10. O-O {[%emt 0:00:41]} d6 {[%emt 0:00:17]} 11. h3 {[%emt 0:00:10]} Nc7 {[%emt 0:00:04]} 12. a4 {[%emt 0:01:05]} a6 {[%emt 0:00:09]} 13. Na3 {[%emt 0:05:10]} Re8 {[%emt 0:01:22]} 14. Re1 {[%emt 0:03:09]} Ncd5 {[%emt 0:02:04]} 15. Bh2 {[%emt 0:01:36]} Bf8 {[%emt 0:00:48]} 16. Nc2 {[%emt 0:02:21]} Nh5 {[%emt 0:01:17]} 17. Qd2 {[%emt 0:05:28]} Qf6 {[%emt 0:01:21]} 18. Be4 {[%emt 0:03:10]} Rab8 {[%emt 0:00:26]} 19. Ng5 {[%emt 0:11:08]} Ndf4 {[%emt 0:05:05]} 20. h4 {[%emt 0:24:48]} h6 {[%emt 0:01:44]} 21. Bxb7 {[%emt 0:12:05]} Rxb7 {[%emt 0:03:18]} 22. Bxf4 {[%emt 0:03:03]} Nxf4 {[%emt 0:00:08]} 23. Ne4 {[%emt 0:00:52]} Qxh4 {[%emt 0:03:47]} 24. g3 {[%emt 0:00:36]} Nh3+ {[%emt 0:00:07]} 25. Kg2 {[%emt 0:02:12]} Qh5 {[%emt 0:00:06]} 26. Rh1 {[%emt 0:01:32]} Qd5 {[%emt 0:03:48]} 27. f3 {[%emt 0:03:15]} Ng5 {[%emt 0:00:15]} 28. Nxg5 {[%emt 0:01:35]} Qxg5 {[%emt 0:00:02]} 29. Qxg5 {[%emt 0:02:01]} hxg5 {[%emt 0:00:02]} 30. Rh5 {[%emt 0:01:27]} f6 {[%emt 0:00:31]} 31. Ne3 {[%emt 0:01:16]} d5 {[%emt 0:03:12]} 32. f4 {[%emt 0:01:35]} gxf4 {[%emt 0:00:33]} 33. gxf4 {[%emt 0:00:01]} g6 {[%emt 0:01:38]} 34. Rh3 {[%emt 0:00:10]} Rh7 {[%emt 0:00:14]} 35. Rxh7 {[%emt 0:00:10]} Kxh7 {[%emt 0:00:02]} 36. Re1 {[%emt 0:00:32]} Re7 {[%emt 0:02:10]} 37. Nc2 {[%emt 0:00:13]} a5 {[%emt 0:01:56]} 38. Kf3 {[%emt 0:01:29]} g5 {[%emt 0:05:00]} 39. fxg5 {[%emt 0:00:43]} fxg5 {[%emt 0:00:02]} 40. Kg4 {[%emt 0:00:00]} Kg6 {[%emt 0:00:00]} 41. Re5 {[%emt 0:04:38]} Kf6 {[%emt 0:08:04]} 42. Ne1 {[%emt 0:02:57]} Rh7 {[%emt 0:11:27]} 43. Nf3 {[%emt 0:00:46]} Rh1 {[%emt 0:01:18]} 44. Nxg5 {[%emt 0:01:54]} Rg1+ {[%emt 0:00:33]} 45. Kh5 {[%emt 0:00:41]} Bd6 {[%emt 0:04:07]} 46. Nh7+ {[%emt 0:04:04]} Ke7 {[%emt 0:00:39]} 47. Re2 {[%emt 0:04:33]} Bf4 {[%emt 0:02:25]} 48. Rf2 {[%emt 0:01:11]} Be3 {[%emt 0:01:13]} 49. Rf3 {[%emt 0:01:51]} Bc1 {[%emt 0:02:52]} 50. Rf2 {[%emt 0:02:09]} Rg7 {[%emt 0:09:58]} 51. Nf6 {[%emt 0:03:00]} Rg1 {[%emt 0:15:43]} 1/2-1/2

[Event "66th HUN-ch Women 2018"]
[Site "Budapest"]
[Date "2018.12.08"]
[Round "6"]
[White "Lakos, Nikoletta"]
[Black "Erdos, Boglarka"]
[Result "1-0"]
[ECO "C44"]
[WhiteElo "2243"]
[BlackElo "2137"]
[Annotator "NA"]
[PlyCount "65"]
[EventDate "2018.12.03"]
[EventType "tourn"]
[EventCountry "HUN"]
[SourceTitle "playchess.com"]
[Source "ChessBase"]
[SourceQuality "1"]
[TimeControl "40/5400+30:1800+30"]

1. e4 {[%emt 0:00:03]} e5 {[%emt 0:16:46]} 2. Nf3 {[%emt 0:01:08]} Nc6 {[%emt 0:00:20]} 3. d3 {[%emt 0:01:11]} Nf6 {[%emt 0:02:31]} 4. Be2 {[%emt 0:00:55]} d5 {[%emt 0:03:29]} 5. Nbd2 {[%emt 0:00:50]} h6 {[%emt 0:08:16]} 6. O-O {[%emt 0:14:52]} Be6 {[%emt 0:00:47]} 7. c3 {[%emt 0:09:44]} Qd7 {[%emt 0:20:07]} 8. b4 {[%emt 0:09:37]} a6 {[%emt 0:01:32]} 9. a4 {[%emt 0:08:04]} Bd6 {[%emt 0:01:03]} 10. Bb2 {[%emt 0:05:16]} O-O {[%emt 0:01:01]} 11. b5 {[%emt 0:06:07]} axb5 {[%emt 0:00:32]} 12. axb5 {[%emt 0:00:05]} Ne7 {[%emt 0:00:14]} 13. exd5 {[%emt 0:06:49]} Bxd5 {[%emt 0:10:30]} 14. c4 {[%emt 0:12:37]} Bxf3 {[%emt 0:00:13]} 15. Nxf3 {[%emt 0:07:15]} Ng6 {[%emt 0:00:51]} 16. d4 {[%emt 0:06:13]} e4 {[%emt 0:01:32]} 17. Ne5 {[%emt 0:00:40]} Qf5 {[%emt 0:03:06]} 18. Nxg6 {[%emt 0:02:11]} Qxg6 {[%emt 0:00:08]} 19. c5 {[%emt 0:01:43]} Bf4 {[%emt 0:02:05]} 20. g3 {[%emt 0:02:11]} Bg5 {[%emt 0:12:53]} 21. d5 {[%emt 0:01:03]} Rxa1 {[%emt 0:02:08]} 22. Bxa1 {[%emt 0:00:03]} Rd8 {[%emt 0:00:41]} 23. Bxf6 {[%emt 0:00:56]} Bxf6 {[%emt 0:00:16]} 24. Bc4 {[%emt 0:00:45]} b6 {[%emt 0:04:53]} 25. d6 {[%emt 0:01:02]} cxd6 {[%emt 0:02:02]} 26. cxb6 {[%emt 0:00:33]} Be5 {[%emt 0:04:28]} 27. Bd5 {[%emt 0:00:14]} Rb8 {[%emt 0:00:30]} 28. b7 {[%emt 0:00:23]} h5 {[%emt 0:00:22]} 29. Qc2 {[%emt 0:00:16]} Qf5 {[%emt 0:00:38]} 30. Rc1 {[%emt 0:00:43]} Bc3 {[%emt 0:00:31]} 31. Bxe4 {[%emt 0:00:38]} Qe5 {[%emt 0:00:27]} 32. Qxc3 {[%emt 0:00:27]} Qxe4 {[%emt 0:00:27]} 33. Qc8+ {[%emt 0:00:15]} 1-0

[Event "66th HUN-ch Women 2018"]
[Site "Budapest"]
[Date "2018.12.08"]
[Round "6"]
[White "Gal, Hanna Krisztina"]
[Black "Juhasz, Barbara"]
[Result "1-0"]
[ECO "B44"]
[WhiteElo "2189"]
[BlackElo "2176"]
[Annotator "NA"]
[PlyCount "82"]
[EventDate "2018.12.03"]
[EventType "tourn"]
[EventCountry "HUN"]
[SourceTitle "playchess.com"]
[Source "ChessBase"]
[SourceQuality "1"]
[TimeControl "40/5400+30:1800+30"]

1. e4 {[%emt 0:00:03]} c5 {[%emt 0:00:07]} 2. Nf3 {[%emt 0:00:06]} e6 {[%emt 0:00:07]} 3. d4 {[%emt 0:00:12]} cxd4 {[%emt 0:00:05]} 4. Nxd4 {[%emt 0:00:04]} Nc6 {[%emt 0:00:08]} 5. Nb5 {[%emt 0:00:17]} d6 {[%emt 0:00:05]} 6. c4 {[%emt 0:00:06]} Nf6 {[%emt 0:00:10]} 7. N1c3 {[%emt 0:00:09]} a6 {[%emt 0:00:07]} 8. Na3 {[%emt 0:00:05]} b6 {[%emt 0:00:12]} 9. Be2 {[%emt 0:00:15]} Bb7 {[%emt 0:00:07]} 10. Be3 {[%emt 0:00:25]} Be7 {[%emt 0:00:23]} 11. O-O {[%emt 0:00:13]} O-O {[%emt 0:00:07]} 12. f3 {[%emt 0:00:12]} Re8 {[%emt 0:00:32]} 13. Qd2 {[%emt 0:01:48]} d5 {[%emt 0:17:58]} 14. cxd5 {[%emt 0:19:51]} exd5 {[%emt 0:00:05]} 15. exd5 {[%emt 0:00:13]} Nb4 {[%emt 0:00:11]} 16. d6 {[%emt 0:04:37]} Bxd6 {[%emt 0:14:04]} 17. Nc4 {[%emt 0:02:13]} Rxe3 {[%emt 0:14:52]} 18. Nxd6 {[%emt 0:02:18]} Re7 {[%emt 0:19:44]} 19. Rfd1 {[%emt 0:13:26]} Rd7 {[%emt 0:03:27]} 20. a3 {[%emt 0:00:57]} Nc6 {[%emt 0:00:53]} 21. Nxb7 {[%emt 0:05:01]} Rxd2 {[%emt 0:03:57]} 22. Nxd8 {[%emt 0:00:06]} Raxd8 {[%emt 0:00:24]} 23. Rxd2 {[%emt 0:11:33]} Rxd2 {[%emt 0:00:07]} 24. Rd1 {[%emt 0:00:25]} Rxd1+ {[%emt 0:01:19]} 25. Bxd1 {[%emt 0:00:32]} Kf8 {[%emt 0:03:25]} 26. Kf2 {[%emt 0:00:47]} Ke7 {[%emt 0:03:01]} 27. Ke3 {[%emt 0:01:45]} h6 {[%emt 0:08:12]} 28. f4 {[%emt 0:06:06]} Kd6 {[%emt 0:02:44]} 29. h3 {[%emt 0:07:12]} Na5 {[%emt 0:03:01]} 30. Be2 {[%emt 0:01:39]} b5 {[%emt 0:00:04]} 31. b4 {[%emt 0:07:09]} Nc6 {[%emt 0:00:18]} 32. Ne4+ {[%emt 0:01:25]} Nxe4 {[%emt 0:00:10]} 33. Kxe4 {[%emt 0:00:04]} f5+ {[%emt 0:00:43]} 34. Ke3 {[%emt 0:02:00]} Ne7 {[%emt 0:02:52]} 35. g3 {[%emt 0:00:28]} Nc6 {[%emt 0:02:28]} 36. h4 {[%emt 0:04:11]} g6 {[%emt 0:00:49]} 37. g4 {[%emt 0:03:04]} fxg4 {[%emt 0:00:13]} 38. Bxg4 {[%emt 0:00:04]} a5 {[%emt 0:00:57]} 39. bxa5 {[%emt 0:01:35]} Nxa5 {[%emt 0:00:04]} 40. Kd4 {[%emt 0:00:00]} Nc6+ {[%emt 0:00:00]} 41. Ke4 {[%emt 0:05:55]} b4 1-0

[Event "66th HUN-ch Women 2018"]
[Site "Budapest"]
[Date "2018.12.08"]
[Round "6"]
[White "Terbe, Zsuzsanna"]
[Black "Gaal, Zsoka"]
[Result "1/2-1/2"]
[ECO "A05"]
[WhiteElo "2180"]
[BlackElo "2020"]
[Annotator "NA"]
[PlyCount "62"]
[EventDate "2018.12.03"]
[EventType "tourn"]
[EventCountry "HUN"]
[SourceTitle "playchess.com"]
[Source "ChessBase"]
[SourceQuality "1"]
[TimeControl "40/5400+30:1800+30"]

1. Nf3 {[%emt 0:00:05]} Nf6 {[%emt 0:00:09]} 2. g3 {[%emt 0:00:08]} g6 {[%emt 0:00:05]} 3. Bg2 {[%emt 0:00:03]} Bg7 {[%emt 0:00:08]} 4. d4 {[%emt 0:00:05]} O-O {[%emt 0:00:13]} 5. O-O {[%emt 0:00:08]} d6 {[%emt 0:00:04]} 6. a4 {[%emt 0:00:05]} a5 {[%emt 0:00:07]} 7. Nc3 {[%emt 0:00:13]} Nbd7 {[%emt 0:00:28]} 8. b3 {[%emt 0:00:38]} e5 {[%emt 0:04:48]} 9. dxe5 {[%emt 0:00:19]} dxe5 {[%emt 0:10:54]} 10. Ba3 {[%emt 0:00:11]} Re8 {[%emt 0:00:09]} 11. Nd2 {[%emt 0:00:25]} Bf8 {[%emt 0:05:19]} 12. Bb2 {[%emt 0:02:23]} c6 {[%emt 0:01:32]} 13. Qc1 {[%emt 0:15:23]} Qc7 {[%emt 0:03:44]} 14. Rd1 {[%emt 0:00:26]} Nc5 {[%emt 0:09:01]} 15. h3 {[%emt 0:04:52]} Be6 {[%emt 0:10:00]} 16. e4 {[%emt 0:04:45]} Rad8 {[%emt 0:07:44]} 17. Nf3 {[%emt 0:06:47]} Nfd7 {[%emt 0:04:32]} 18. Qe3 {[%emt 0:03:44]} f6 {[%emt 0:03:36]} 19. Bf1 {[%emt 0:04:51]} Bf7 {[%emt 0:02:36]} 20. h4 {[%emt 0:01:20]} Ne6 {[%emt 0:04:54]} 21. Rd2 {[%emt 0:07:32]} Bc5 {[%emt 0:01:23]} 22. Qe1 {[%emt 0:01:12]} Nd4 {[%emt 0:02:53]} 23. Bg2 {[%emt 0:02:07]} Nf8 {[%emt 0:02:09]} 24. Rad1 {[%emt 0:06:05]} Nfe6 {[%emt 0:00:55]} 25. Ne2 {[%emt 0:04:55]} Nxf3+ {[%emt 0:09:17]} 26. Bxf3 {[%emt 0:00:23]} Rxd2 {[%emt 0:01:28]} 27. Qxd2 {[%emt 0:07:24]} Rd8 {[%emt 0:00:47]} 28. Qe1 {[%emt 0:01:24]} Rxd1 {[%emt 0:06:04]} 29. Qxd1 {[%emt 0:00:10]} Qd8 {[%emt 0:01:04]} 30. Qxd8+ {[%emt 0:03:15]} Nxd8 {[%emt 0:00:08]} 31. Bc3 {[%emt 0:01:30]} b6 1/2-1/2

[Event "66th HUN-ch Women 2018"]
[Site "Budapest"]
[Date "2018.12.08"]
[Round "6"]
[White "Egyed, Judit"]
[Black "Havanecz, Bianka"]
[Result "0-1"]
[ECO "B15"]
[WhiteElo "2045"]
[BlackElo "2247"]
[Annotator "NA"]
[PlyCount "64"]
[EventDate "2018.12.03"]
[EventType "tourn"]
[EventCountry "HUN"]
[SourceTitle "playchess.com"]
[Source "ChessBase"]
[SourceQuality "1"]
[TimeControl "40/5400+30:1800+30"]

1. e4 {[%emt 0:00:03]} c6 {[%emt 0:00:04]} 2. d4 {[%emt 0:00:11]} d5 {[%emt 0:00:05]} 3. Nc3 {[%emt 0:00:08]} dxe4 {[%emt 0:00:05]} 4. Nxe4 {[%emt 0:00:05]} Nf6 {[%emt 0:00:05]} 5. Nxf6+ {[%emt 0:00:39]} exf6 {[%emt 0:00:01]} 6. Be3 {[%emt 0:01:59]} Bd6 {[%emt 0:00:11]} 7. Bd3 {[%emt 0:02:23]} O-O {[%emt 0:00:29]} 8. Ne2 {[%emt 0:01:07]} Re8 {[%emt 0:00:10]} 9. c3 {[%emt 0:02:04]} Nd7 {[%emt 0:00:05]} 10. Qc2 {[%emt 0:01:23]} Nf8 {[%emt 0:00:05]} 11. O-O-O {[%emt 0:12:16]} Qa5 {[%emt 0:01:52]} 12. Kb1 {[%emt 0:00:17]} b5 {[%emt 0:00:37]} 13. Nc1 {[%emt 0:04:00]} Be6 {[%emt 0:01:11]} 14. h4 {[%emt 0:06:14]} Bd5 {[%emt 0:01:39]} 15. Rdg1 {[%emt 0:02:18]} Qc7 {[%emt 0:00:11]} 16. Rh3 {[%emt 0:05:15]} a5 {[%emt 0:00:58]} 17. Bd2 {[%emt 0:08:17]} Rab8 {[%emt 0:02:45]} 18. f3 {[%emt 0:02:27]} c5 {[%emt 0:03:26]} 19. g4 {[%emt 0:05:10]} cxd4 {[%emt 0:00:55]} 20. cxd4 {[%emt 0:03:35]} Qb6 {[%emt 0:02:37]} 21. g5 {[%emt 0:05:29]} Rbc8 {[%emt 0:14:27]} 22. Qd1 {[%emt 0:00:27]} Be6 {[%emt 0:04:37]} 23. gxf6 {[%emt 0:08:29]} g6 {[%emt 0:06:30]} 24. Rhh1 {[%emt 0:00:18]} Qxd4 {[%emt 0:01:14]} 25. Bc3 {[%emt 0:04:41]} Rxc3 {[%emt 0:01:00]} 26. bxc3 {[%emt 0:00:25]} Qxc3 {[%emt 0:00:05]} 27. Qc2 {[%emt 0:01:19]} Qb4+ {[%emt 0:00:36]} 28. Nb3 {[%emt 0:00:38]} a4 {[%emt 0:00:15]} 29. Qc1 {[%emt 0:20:46]} axb3 {[%emt 0:00:32]} 30. a4 Qd4 {[%emt 0:02:04]} 31. Rd1 {[%emt 0:01:54]} Be5 {[%emt 0:00:49]} 32. Qa3 {[%emt 0:00:05]} Qxa4 {[%emt 0:00:48]} 0-1